bitfinex-derivatives/quotes_BTCF0:USTF0_20250703
["timestamp","ask_amount","ask_price","bid_price","bid_amount"]
[1751522630034,2.29465325,109380.0,109370.0,0.00685804]
[1751522630240,2.29465325,109380.0,109370.0,0.03419904]
[1751522634332,2.54288422,109380.0,109370.0,0.03419904]
[1751522635738,0.1828041,109370.0,109360.0,0.12213287]
[1751522635941,0.85673507,109370.0,109360.0,0.12213287]
[1751522636344,1.10496604,109370.0,109360.0,0.12213287]
[1751522636839,1.10622407,109370.0,109360.0,0.12913287]
[1751522639238,1.10622407,109370.0,109360.0,0.07455009]
[1751522639644,1.6941531,109370.0,109360.0,0.07455009]
[1751522639846,1.6941531,109370.0,109360.0,0.10625009]
[1751522640345,1.6941531,109370.0,109360.0,0.16083287]
[1751522649250,1.44592213,109370.0,109360.0,0.12913287]
[1751522649450,1.6941531,109370.0,109360.0,0.12913287]
[1751522650952,1.97408407,109370.0,109360.0,0.12913287]
[1751522651346,1.97408407,109370.0,109360.0,0.09803287]
[1751522651748,2.22231504,109370.0,109360.0,0.04345009]
[1751522652047,2.22231504,109370.0,109360.0,0.00985841]
[1751522654458,1.97408407,109370.0,109360.0,0.00985841]
[1751522657258,1.97408407,109370.0,109360.0,0.007]
[1751522657458,1.97408407,109370.0,109360.0,0.00985842]
[1751522657859,2.22231504,109370.0,109360.0,0.007]
[1751522658354,2.22231504,109370.0,109360.0,0.003]
[1751522658563,0.1828208,109360.0,109350.0,0.00182891]
[1751522658857,1.40141191,109360.0,109350.0,0.01836428]
[1751522659860,1.40141191,109360.0,109350.0,0.02236428]
[1751522660056,1.40141191,109360.0,109350.0,0.02636428]
[1751522661263,1.40141191,109360.0,109350.0,0.02350568]
[1751522664458,1.40141191,109360.0,109350.0,0.01950568]
[1751522664665,1.40441191,109360.0,109350.0,0.01950568]
[1751522664966,1.40441191,109360.0,109350.0,0.01550568]
[1751522665558,1.40441191,109360.0,109350.0,0.01367677]
[1751522665764,1.40441191,109360.0,109350.0,8e-08]
[1751522666963,2.66897191,109360.0,109350.0,8e-08]
[1751522667164,2.82077191,109360.0,109350.0,8e-08]
[1751522669666,3.31777191,109360.0,109350.0,8e-08]
[1751522671366,0.1828542,109340.0,109330.0,0.03]
[1751522671565,1.76515132,109340.0,109330.0,0.03285885]
[1751522671764,1.83210935,109340.0,109330.0,0.03285885]
[1751522673169,1.83210935,109340.0,109330.0,0.09925885]
[1751522674177,1.83210935,109340.0,109330.0,0.10225885]
[1751522677372,1.83210935,109340.0,109330.0,0.0994]
[1751522677567,1.83210935,109340.0,109330.0,0.10225886]
[1751522677771,1.83210935,109340.0,109330.0,0.11607069]
[1751522677969,1.76632935,109340.0,109330.0,0.29894159]
[1751522678273,0.69740935,109340.0,109330.0,0.29894159]
[1751522678572,1.76632935,109340.0,109330.0,0.29894159]
[1751522681075,0.69740935,109340.0,109330.0,0.29894159]
[1751522681373,1.53316935,109340.0,109330.0,0.33539168]
[1751522683778,1.53316935,109340.0,109330.0,0.33539166]
[1751522688484,1.53316935,109340.0,109330.0,0.38997444]
[1751522688886,0.69740935,109340.0,109330.0,0.38997444]
[1751522689485,0.69740935,109340.0,109330.0,0.34611233]
[1751522692089,1.6740485,109350.0,109330.0,0.34611233]
[1751522692090,0.0914235,109350.0,109330.0,1.65443496]
[1751522692288,0.2285529,109350.0,109340.0,1.16758373]
[1751522692493,0.2285529,109350.0,109340.0,1.18116324]
[1751522692788,0.47678387,109350.0,109340.0,1.19641959]
[1751522692987,0.47678387,109350.0,109340.0,1.19927784]
[1751522693293,0.47678387,109350.0,109340.0,0.97781466]
[1751522694293,0.47678387,109350.0,109340.0,0.97981466]
[1751522694992,0.47678387,109350.0,109340.0,0.98081466]
[1751522697597,0.47678387,109350.0,109340.0,0.95404687]
[1751522697791,0.47678387,109350.0,109340.0,0.98093045]
[1751522699498,0.43107327,109350.0,109340.0,0.98093045]
[1751522699699,0.1828423,109350.0,109340.0,1.81637045]
[1751522699895,0.19927097,109360.0,109350.0,0.1828375]
[1751522700100,0.44750194,109360.0,109350.0,0.98573567]
[1751522700299,0.44750194,109360.0,109350.0,0.9493735]
[1751522700500,0.19927097,109360.0,109350.0,0.9493735]
[1751522700697,0.56816007,109370.0,109360.0,0.1828208]
[1751522700907,0.182817,109370.0,109360.0,1.23407735]
[1751522701205,0.182817,109370.0,109360.0,2.39018127]
[1751522701398,0.182817,109370.0,109360.0,2.1419503]
[1751522701601,0.43104797,109370.0,109360.0,2.1419503]
[1751522701897,0.182817,109370.0,109360.0,2.14203757]
[1751522702404,0.183817,109370.0,109360.0,2.14203757]
[1751522702704,0.183817,109370.0,109360.0,1.83203757]
[1751522702900,0.183817,109370.0,109360.0,1.58371933]
[1751522703198,0.183817,109370.0,109360.0,1.57300285]
[1751522703400,0.183817,109370.0,109360.0,1.60928785]
[1751522705009,0.183817,109370.0,109360.0,1.88477239]
[1751522705303,0.183817,109370.0,109360.0,1.60928785]
[1751522706205,0.183817,109370.0,109360.0,1.94928785]
[1751522706407,0.183817,109370.0,109360.0,1.91928785]
[1751522706608,0.183817,109370.0,109360.0,1.60928785]
[1751522707007,0.183817,109370.0,109360.0,1.85760609]
[1751522707210,0.183817,109370.0,109360.0,1.60928785]
[1751522707913,0.183817,109370.0,109360.0,1.98928785]
[1751522708304,0.183817,109370.0,109360.0,1.93477239]
[1751522708609,0.183817,109370.0,109360.0,1.55477239]
[1751522711611,0.183817,109370.0,109360.0,1.19397239]
[1751522711808,0.183817,109370.0,109360.0,1.91557239]
[1751522712713,0.183817,109370.0,109360.0,1.91271473]
[1751522715316,0.183817,109370.0,109360.0,1.96723019]
[1751522717618,0.183817,109370.0,109360.0,1.96745738]
[1751522718515,0.43213524,109370.0,109360.0,1.13205738]
[1751522718716,0.183817,109370.0,109360.0,1.93465738]
[1751522718917,0.43213524,109370.0,109360.0,1.90285738]
[1751522719113,0.49493524,109370.0,109360.0,1.90285738]
[1751522719318,0.52643524,109370.0,109360.0,1.90285738]
[1751522719519,0.52643524,109370.0,109360.0,1.90281738]
[1751522719719,0.52643524,109370.0,109360.0,1.87211738]
[1751522720219,0.52643524,109370.0,109360.0,1.81760192]
[1751522720419,0.52643524,109370.0,109360.0,1.87211738]
[1751522722315,0.52643524,109370.0,109360.0,1.83583238]
[1751522723111,0.278117,109370.0,109360.0,1.83583238]
[1751522723315,0.52643524,109370.0,109360.0,1.83583238]
[1751522723531,0.52643524,109370.0,109360.0,1.86803238]
[1751522724115,0.52643524,109370.0,109360.0,1.87874922]
[1751522726218,0.246617,109370.0,109360.0,1.87874922]
[1751522726422,0.43213524,109370.0,109360.0,1.82423376]
[1751522726616,0.43213524,109370.0,109360.0,1.85703376]
[1751522727016,0.46223524,109370.0,109360.0,1.85703376]
[1751522727326,0.46223524,109370.0,109360.0,1.92957301]
[1751522727526,0.46223524,109370.0,109360.0,1.92949301]
[1751522728021,0.46223524,109370.0,109360.0,1.09461301]
[1751522728222,0.46223524,109370.0,109360.0,1.92949301]
[1751522730629,0.46223524,109370.0,109360.0,1.09461301]
[1751522730830,0.46223524,109370.0,109360.0,1.92945301]
[1751522731430,0.46223524,109370.0,109360.0,1.09461301]
[1751522731629,0.46223524,109370.0,109360.0,1.92945301]
[1751522731929,0.46223524,109370.0,109360.0,1.92945283]
[1751522732429,0.46223524,109370.0,109360.0,1.9323106]
[1751522733128,0.49233524,109370.0,109360.0,1.8673105]
[1751522733331,0.52323524,109370.0,109360.0,1.8673105]
[1751522735032,0.52323524,109370.0,109360.0,1.5065105]
[1751522740035,0.52323524,109370.0,109360.0,1.49579384]
[1751522741739,0.5232939,109370.0,109360.0,1.49579384]
[1751522741938,0.5232939,109370.0,109360.0,1.52659384]
[1751522742134,0.5232939,109370.0,109360.0,1.77497074]
[1751522743238,0.5232939,109370.0,109360.0,1.77211297]
[1751522744141,0.4923939,109370.0,109360.0,1.52373607]
[1751522744440,0.4923939,109370.0,109360.0,1.50584301]
[1751522744640,0.4923939,109370.0,109360.0,1.75421991]
[1751522745942,0.4923939,109370.0,109360.0,1.39341991]
[1751522746242,0.4923939,109370.0,109360.0,1.75421991]
[1751522747537,0.4923939,109370.0,109360.0,1.50584301]
[1751522748849,0.4923939,109370.0,109360.0,1.32302231]
[1751522749047,0.4923939,109370.0,109360.0,1.50584311]
[1751522749249,0.5236939,109370.0,109360.0,1.50584311]
[1751522751743,0.5236939,109370.0,109360.0,0.48818231]
[1751522751948,0.7720708,109370.0,109360.0,1.29198231]
[1751522752250,0.5236939,109370.0,109360.0,1.29198231]
[1751522753552,0.5236939,109370.0,109360.0,0.45738231]
[1751522753748,0.7720708,109370.0,109360.0,0.04193612]
[1751522753952,0.7720708,109370.0,109360.0,0.0965795]
[1751522755552,0.7720708,109370.0,109360.0,0.13299907]
[1751522758448,0.7720708,109370.0,109360.0,0.105886]
[1751522759460,0.7720708,109370.0,109360.0,0.108744]
[1751522759658,0.7720708,109370.0,109360.0,0.2915648]
[1751522759959,0.5236939,109370.0,109360.0,0.2915648]
[1751522760260,0.5236939,109370.0,109360.0,0.108744]
[1751522760959,0.7720708,109370.0,109360.0,0.108744]
[1751522762561,0.7720708,109370.0,109360.0,0.13541128]
[1751522762956,0.7720708,109370.0,109360.0,0.13541129]
[1751522763157,0.7720708,109370.0,109360.0,0.31823209]
[1751522765760,0.7720708,109370.0,109360.0,0.26358871]
[1751522765957,0.5236939,109370.0,109360.0,0.26358871]
[1751522766261,0.5236939,109370.0,109360.0,0.29578871]
[1751522767959,0.7720708,109370.0,109360.0,0.29578871]
[1751522769662,0.5236939,109370.0,109360.0,0.29578871]
[1751522771159,0.001,109370.0,109360.0,1.99171941]
[1751522771360,0.6826408,109400.0,109390.0,0.1827706]
[1751522771560,0.5702177,109400.0,109390.0,0.52432241]
[1751522771865,0.8185946,109400.0,109390.0,0.27594551]
[1751522772164,0.8507946,109400.0,109390.0,0.30834551]
[1751522772564,0.8547946,109400.0,109390.0,0.30834551]
[1751522773766,0.8547946,109400.0,109390.0,0.2691163]
[1751522773767,0.61129141,109400.0,109390.0,0.2691163]
[1751522773969,0.61129141,109400.0,109390.0,0.27197356]
[1751522776066,0.61129141,109400.0,109390.0,0.08920296]
[1751522776366,0.61129141,109400.0,109390.0,0.03525726]
[1751522776567,0.61129141,109400.0,109390.0,0.27209999]
[1751522776969,0.61129141,109400.0,109390.0,0.2721]
[1751522779173,0.61129141,109400.0,109390.0,0.0893294]
[1751522780273,0.64169141,109400.0,109390.0,0.0569294]
[1751522781570,0.64169141,109400.0,109390.0,0.02970047]
[1751522781971,0.6261208,109400.0,109390.0,0.02970047]
[1751522782272,0.87437141,109400.0,109390.0,0.02970047]
[1751522783174,0.87437141,109400.0,109390.0,0.02970048]
[1751522786675,0.6261208,109400.0,109390.0,0.02970048]
[1751522786877,0.87437141,109400.0,109390.0,0.02970048]
[1751522795487,0.87437141,109400.0,109390.0,0.0297005]
[1751522795977,1.12265558,109400.0,109390.0,0.0297005]
[1751522796178,1.12265558,109400.0,109390.0,0.05692943]
[1751522797984,1.48345558,109400.0,109390.0,0.05692943]
[1751522798375,0.7542408,109400.0,109390.0,0.30519682]
[1751522798576,1.00250819,109400.0,109390.0,0.33609682]
[1751522798785,1.00250819,109400.0,109390.0,0.51886742]
[1751522798985,1.00250819,109400.0,109390.0,0.33609682]
[1751522799384,1.00250819,109400.0,109390.0,0.55523863]
[1751522801388,1.00250819,109400.0,109390.0,0.5280097]
[1751522801888,1.00250819,109400.0,109390.0,0.09697171]
[1751522802089,1.28387558,109400.0,109390.0,0.3452391]
[1751522802285,1.03560819,109400.0,109390.0,0.3452391]
[1751522803592,1.03560819,109400.0,109390.0,0.09697171]
[1751522803786,1.03560819,109400.0,109390.0,0.3452391]
[1751522804594,1.03560819,109400.0,109390.0,0.5280097]
[1751522804893,0.7873408,109400.0,109390.0,0.5280097]
[1751522805091,1.03560819,109400.0,109390.0,0.5280097]
[1751522805792,1.00520819,109400.0,109390.0,0.5280097]
[1751522807693,1.00520819,109400.0,109390.0,0.52800978]
[1751522808695,1.00520819,109400.0,109390.0,0.52836065]
[1751522809597,1.00520819,109400.0,109390.0,0.58300403]
[1751522811396,1.00520819,109400.0,109390.0,0.40023343]
[1751522812104,0.7569408,109400.0,109390.0,0.58300403]
[1751522812303,1.00520819,109400.0,109390.0,0.58300403]
[1751522812600,1.00520819,109400.0,109390.0,0.64670403]
[1751522813600,1.00520819,109400.0,109390.0,0.64670398]
[1751522814296,1.00520819,109400.0,109390.0,0.61950991]
[1751522814496,1.00520819,109400.0,109390.0,0.3984382]
[1751522814703,1.00520819,109400.0,109390.0,0.64670559]
[1751522816305,1.00520819,109400.0,109390.0,0.6027772]
[1751522820200,1.00520819,109400.0,109390.0,0.5715772]
[1751522820801,0.93990819,109400.0,109390.0,0.5715772]
[1751522821003,0.57910819,109400.0,109390.0,0.6030772]
[1751522821507,0.3308408,109400.0,109390.0,0.65772058]
[1751522821705,0.57910819,109400.0,109390.0,0.65772058]
[1751522822598,0.57910819,109400.0,109390.0,0.64700559]
[1751522822803,0.3308408,109400.0,109390.0,0.64700559]
[1751522823005,0.57910819,109400.0,109390.0,0.64700559]
[1751522824103,0.3308408,109400.0,109390.0,0.60307687]
[1751522824503,0.3308408,109400.0,109390.0,0.35480948]
[1751522824705,0.3308408,109400.0,109390.0,0.60307687]
[1751522824908,0.3308408,109400.0,109390.0,0.62134904]
[1751522825108,0.3308408,109400.0,109390.0,0.61063438]
[1751522825302,0.3308408,109400.0,109390.0,0.61063426]
[1751522825503,0.3308408,109400.0,109390.0,0.62134882]
[1751522827308,0.3308408,109400.0,109390.0,0.59415314]
[1751522827505,0.011,109400.0,109390.0,1.26717578]
[1751522827709,0.011,109400.0,109390.0,2.39470037]
[1751522828210,0.0652,109420.0,109410.0,0.1827372]
[1751522828511,0.31492839,109430.0,109420.0,0.1827205]
[1751522828709,0.31492839,109430.0,109420.0,1.16549922]
[1751522829011,0.56319578,109430.0,109420.0,0.88996611]
[1751522829312,0.34732839,109430.0,109420.0,0.91720608]
[1751522829614,0.59559578,109430.0,109420.0,0.73448558]
[1751522829805,0.34732839,109430.0,109420.0,0.48621819]
[1751522830399,0.35532839,109430.0,109420.0,0.44985702]
[1751522830708,0.36132839,109430.0,109420.0,0.48721819]
[1751522830909,0.78322839,109430.0,109420.0,0.12641819]
[1751522831110,0.78322839,109430.0,109420.0,0.09005702]
[1751522831312,1.03132471,109430.0,109420.0,0.09005702]
[1751522833213,1.03132471,109430.0,109420.0,0.0898991]
[1751522834013,1.03132471,109430.0,109420.0,0.08704189]
[1751522834713,1.03132471,109430.0,109420.0,0.08989842]
[1751522834916,0.78322839,109430.0,109420.0,0.08704189]
[1751522835115,0.78322839,109430.0,109420.0,0.08989842]
[1751522835308,0.78322839,109430.0,109420.0,0.06268685]
[1751522835507,0.78322839,109430.0,109420.0,0.03525653]
[1751522835705,0.78322839,109430.0,109420.0,0.06266931]
[1751522836215,0.78322839,109430.0,109420.0,0.3379598]
[1751522836920,0.42242839,109430.0,109420.0,0.3379598]
[1751522837111,0.78322839,109430.0,109420.0,0.3379598]
[1751522838410,0.78322839,109430.0,109420.0,0.31076563]
[1751522838816,0.78322839,109430.0,109420.0,0.06266931]
[1751522841218,1.03132471,109430.0,109420.0,0.06266931]
[1751522843412,0.78322839,109430.0,109420.0,0.06266931]
[1751522843620,1.03132471,109430.0,109420.0,0.06266931]
[1751522846318,0.78322839,109430.0,109420.0,0.27258408]
[1751522846518,0.42242839,109430.0,109420.0,0.8814804]
[1751522846718,0.42242839,109430.0,109420.0,0.6987598]
[1751522847019,0.42242839,109430.0,109420.0,0.45066348]
[1751522847321,0.67052471,109430.0,109420.0,0.63338398]
[1751522847823,0.42242839,109430.0,109420.0,0.63338386]
[1751522848023,0.41642839,109430.0,109420.0,0.63238386]
[1751522848222,0.41842839,109430.0,109420.0,0.63238386]
[1751522848822,0.41642839,109430.0,109420.0,0.63238386]
[1751522849121,0.41842839,109430.0,109420.0,0.63238386]
[1751522849921,0.41842839,109430.0,109420.0,0.88048018]
[1751522850424,0.38772839,109430.0,109420.0,0.88048018]
[1751522850624,0.38772839,109430.0,109420.0,0.94694135]
[1751522850820,0.38772839,109430.0,109420.0,0.94694132]
[1751522851017,0.38772839,109430.0,109420.0,0.95593048]
[1751522851624,0.37972839,109430.0,109420.0,0.92873631]
[1751522851819,0.38272839,109430.0,109420.0,0.92873631]
[1751522852424,0.35232839,109430.0,109420.0,0.92873631]
[1751522852620,0.07427056,109440.0,109430.0,0.1827039]
[1751522852826,0.1846872,109440.0,109430.0,0.96620707]
[1751522853024,0.1846872,109440.0,109430.0,1.03145875]
[1751522853223,0.1846872,109440.0,109430.0,0.78336243]
[1751522853421,0.1846872,109440.0,109430.0,1.03145875]
[1751522853822,0.1846872,109440.0,109430.0,0.99509758]
[1751522855621,0.002,109440.0,109430.0,0.99509758]
[1751522855821,0.2466436,109450.0,109440.0,0.1826872]
[1751522856018,0.2466436,109450.0,109440.0,1.81944877]
[1751522856718,0.2466436,109450.0,109440.0,1.81659239]
[1751522856923,0.2466436,109450.0,109440.0,1.81944812]
[1751522857527,0.2496436,109450.0,109440.0,1.81944812]
[1751522859525,0.2496305,109450.0,109440.0,1.81944812]
[1751522859829,0.2486305,109450.0,109440.0,1.81944812]
[1751522860232,0.2486305,109450.0,109440.0,1.5713518]
[1751522860428,0.2486305,109450.0,109440.0,1.81944812]
[1751522860831,0.2486305,109450.0,109440.0,1.81659239]
[1751522861324,0.00506,109460.0,109450.0,0.1826705]
[1751522861530,0.1877138,109460.0,109450.0,0.71585896]
[1751522861731,0.1877138,109460.0,109450.0,1.01849703]
[1751522862230,0.00506,109460.0,109450.0,1.01849703]
[1751522862426,0.00506,109460.0,109450.0,1.38849703]
[1751522862733,0.00506,109460.0,109450.0,1.34466307]
[1751522863528,0.1907138,109460.0,109450.0,1.34466307]
[1751522864034,0.1907138,109460.0,109450.0,1.34751848]
[1751522864630,0.00806,109460.0,109450.0,1.39135244]
[1751522866441,0.00806,109460.0,109450.0,1.33681069]
[1751522866941,0.00806,109460.0,109450.0,1.39135244]
[1751522867133,0.00806,109460.0,109450.0,1.33681069]
[1751522868432,0.00806,109460.0,109450.0,1.36394797]
[1751522868846,0.00806,109460.0,109450.0,1.37465574]
[1751522869641,0.00806,109460.0,109450.0,1.36394797]
[1751522869944,0.00806,109460.0,109450.0,1.37465574]
[1751522871542,0.00806,109460.0,109450.0,1.40166293]
[1751522872944,0.00506,109460.0,109450.0,1.40166293]
[1751522873143,0.00606,109460.0,109450.0,1.40166293]
[1751522873642,0.00606,109460.0,109450.0,1.36542367]
[1751522873847,0.00606,109460.0,109450.0,1.67542367]
[1751522874943,0.06155,109470.0,109460.0,0.1826538]
[1751522875140,0.002,109480.0,109470.0,0.1826371]
[1751522875339,0.1846205,109480.0,109470.0,0.95803688]
[1751522875539,0.2158205,109480.0,109470.0,1.74684066]
[1751522875742,0.2158205,109480.0,109470.0,1.53490884]
[1751522875945,0.2158205,109480.0,109470.0,1.78300516]
[1751522876145,0.2158205,109480.0,109470.0,0.65662434]
[1751522876342,0.2504205,109480.0,109470.0,1.74704066]
[1751522878145,0.2504205,109480.0,109470.0,1.49894434]
[1751522878444,0.49851682,109480.0,109470.0,0.65160506]
[1751522878647,0.49851682,109480.0,109470.0,1.09740066]
[1751522879350,0.49851682,109480.0,109470.0,1.13356516]
[1751522879746,0.49851682,109480.0,109470.0,1.09740066]
[1751522881339,0.49551682,109480.0,109470.0,0.29080516]
[1751522881541,0.49551682,109480.0,109470.0,1.13340516]
[1751522881743,0.49551682,109480.0,109470.0,1.09724066]
[1751522882046,0.49551682,109480.0,109470.0,0.25464066]
[1751522882352,0.85631682,109480.0,109470.0,0.07200346]
[1751522883053,0.85631682,109480.0,109470.0,0.05699082]
[1751522883243,0.85631682,109480.0,109470.0,0.0270155]
[1751522886047,0.85631682,109480.0,109470.0,0.05413541]
[1751522886252,0.85631682,109480.0,109470.0,0.0270155]
[1751522887063,1.93363682,109480.0,109470.0,0.02987103]
[1751522887354,1.93363682,109480.0,109470.0,0.05699094]
[1751522887552,1.93363682,109480.0,109470.0,0.05413541]
[1751522888054,1.93363682,109480.0,109470.0,0.0270155]
[1751522888754,1.93363682,109480.0,109470.0,0.02987106]
[1751522894259,1.93363682,109480.0,109470.0,0.0270155]
[1751522896460,0.1826372,109470.0,109460.0,0.02711991]
[1751522896652,0.1826872,109440.0,109430.0,0.05442787]
[1751522896853,0.1827039,109430.0,109420.0,0.00104]
[1751522897057,0.49500022,109430.0,109420.0,0.03154]
[1751522897554,1.33784022,109430.0,109420.0,0.03154]
[1751522897958,1.33784022,109430.0,109420.0,0.03554]
[1751522898160,1.33780022,109430.0,109420.0,0.03554]
[1751522900958,1.33780022,109430.0,109420.0,0.03754]
[1751522901463,1.33748022,109430.0,109420.0,0.03754]
[1751522901665,1.33748022,109430.0,109420.0,0.06944]
[1751522901969,1.33748022,109430.0,109420.0,0.06744]
[1751522902665,1.33748022,109430.0,109420.0,0.03554]
[1751522902872,1.69828022,109430.0,109420.0,0.03554]
[1751522903161,1.73058022,109430.0,109420.0,0.03554]
[1751522903964,1.73058022,109430.0,109420.0,0.00504]
[1751522904469,0.1827373,109410.0,109400.0,0.04581494]
[1751522904771,1.88216994,109410.0,109400.0,0.04581494]
[1751522905069,2.17874994,109410.0,109400.0,0.04581494]
[1751522905370,2.21154994,109410.0,109400.0,0.04581494]
[1751522905569,1.96345362,109410.0,109400.0,0.22856894]
[1751522905769,1.96345362,109410.0,109400.0,0.036]
[1751522905968,1.96345362,109410.0,109400.0,0.04]
[1751522907168,1.96345362,109410.0,109400.0,0.009]
[1751522907366,2.21154994,109410.0,109400.0,0.009]
[1751522908471,1.96345362,109410.0,109400.0,0.009]
[1751522909672,1.96345362,109410.0,109400.0,0.0396]
[1751522910072,1.96345362,109410.0,109400.0,0.222354]
[1751522910373,1.57175362,109410.0,109400.0,0.222354]
[1751522911470,0.1827373,109410.0,109400.0,0.222354]
[1751522911670,0.1827373,109410.0,109400.0,0.253754]
[1751522911871,1.0256573,109410.0,109400.0,0.253754]
[1751522914271,1.27375362,109410.0,109400.0,0.253754]
[1751522914575,1.27375362,109410.0,109400.0,0.071]
[1751522915074,1.27375362,109410.0,109400.0,0.253754]
[1751522915476,1.27375362,109410.0,109400.0,0.071]
[1751522917079,1.27375362,109410.0,109400.0,0.07385706]
[1751522917273,1.27375362,109410.0,109400.0,0.25661106]
[1751522917478,1.0256573,109410.0,109400.0,0.25661106]
[1751522917678,1.27375362,109410.0,109400.0,0.25661106]
[1751522918882,1.27375362,109410.0,109400.0,0.07385706]
[1751522919176,1.30615362,109410.0,109400.0,0.01185706]
[1751522919478,1.94694994,109410.0,109400.0,0.01185706]
[1751522921175,1.94694994,109410.0,109400.0,0.009]
[1751522921176,1.4507573,109410.0,109400.0,0.009]
[1751522921381,1.94694994,109410.0,109400.0,0.009]
[1751522923282,0.182754,109400.0,109390.0,0.00182824]
[1751522923477,0.89497976,109400.0,109390.0,0.00182824]
[1751522923682,0.89497976,109400.0,109390.0,0.01542085]
[1751522924584,0.89497976,109400.0,109390.0,0.02142085]
[1751522925886,0.89497976,109400.0,109390.0,0.01542085]
[1751522926186,0.89597976,109400.0,109390.0,0.01542085]
[1751522927981,0.88665032,109400.0,109390.0,0.01542085]
[1751522931186,0.88665032,109400.0,109390.0,0.01558257]
[1751522934283,1.96489032,109400.0,109390.0,0.01558257]
[1751522935180,1.96489032,109400.0,109390.0,0.01844016]
[1751522938892,1.96489032,109400.0,109390.0,0.01558257]
[1751522939088,1.96489032,109400.0,109390.0,0.01844016]
[1751522940597,1.96489032,109400.0,109390.0,0.0184463]
[1751522943100,0.88665032,109400.0,109390.0,0.0184463]
[1751522943602,1.96317032,109400.0,109390.0,0.0184463]
[1751522943998,0.88665032,109400.0,109390.0,0.00468583]
[1751522944194,1.93233032,109400.0,109390.0,0.20121985]
[1751522944391,1.93233032,109400.0,109390.0,0.23251985]
[1751522944599,0.43185032,109400.0,109390.0,0.23251985]
[1751522944793,1.50873032,109400.0,109390.0,0.29451985]
[1751522944994,0.43185032,109400.0,109390.0,0.29451985]
[1751522945197,1.27393032,109400.0,109390.0,0.29451985]
[1751522949005,0.43185032,109400.0,109390.0,0.29451985]
[1751522949405,1.27349032,109400.0,109390.0,0.29451985]
[1751522950101,1.27337032,109400.0,109390.0,0.29451985]
[1751522950306,1.27337032,109400.0,109390.0,0.29434563]
[1751522951306,1.27337032,109400.0,109390.0,0.11157493]
[1751522951508,1.27337032,109400.0,109390.0,0.04957493]
[1751522951707,1.30617032,109400.0,109390.0,0.04957493]
[1751522953007,1.66697032,109400.0,109390.0,0.01827493]
[1751522953210,1.69957032,109400.0,109390.0,0.01541734]
[1751522953404,1.69957032,109400.0,109390.0,0.01827483]
[1751522955312,1.69957032,109400.0,109390.0,0.01827484]
[1751522960216,1.33877032,109400.0,109390.0,0.01827484]
[1751522960417,1.69957032,109400.0,109390.0,0.01827484]
[1751522962914,0.1827707,109390.0,109380.0,0.02730002]
[1751522963116,0.1827874,109380.0,109370.0,0.06361656]
[1751522963318,2.17876004,109380.0,109370.0,0.02730002]
[1751522963620,2.17876004,109380.0,109370.0,0.03801721]
[1751522964221,2.17776004,109380.0,109370.0,0.03801721]
[1751522964419,2.17776004,109380.0,109370.0,0.02730002]
[1751522964920,2.17776004,109380.0,109370.0,0.02930002]
[1751522965226,2.17676004,109380.0,109370.0,0.02930002]
[1751522966020,2.17676004,109380.0,109370.0,0.03130002]
[1751522966319,2.25026691,109380.0,109370.0,0.004]
[1751522973219,1.88946691,109380.0,109370.0,0.004]
[1751522973418,2.25026691,109380.0,109370.0,0.004]
[1751522974624,0.92629059,109380.0,109370.0,0.004]
[1751522974920,1.61123059,109380.0,109370.0,0.02080233]
[1751522975125,1.61123059,109380.0,109370.0,0.23624035]
[1751522975322,1.57803059,109380.0,109370.0,0.26804035]
[1751522975522,1.57803059,109380.0,109370.0,0.29924035]
[1751522976024,1.32993427,109380.0,109370.0,0.29924035]
[1751522976422,1.57803059,109380.0,109370.0,0.29924035]
[1751522977327,0.73699059,109380.0,109370.0,0.29924035]
[1751522978827,0.25429427,109380.0,109370.0,0.29924035]
[1751522979028,0.50239059,109380.0,109370.0,0.29924035]
[1751522979228,0.50239059,109380.0,109370.0,0.32650473]
[1751522979527,0.50239059,109380.0,109370.0,0.29924031]
[1751522981228,0.50239059,109380.0,109370.0,0.32650469]
[1751522982931,0.50239059,109380.0,109370.0,0.14370059]
[1751522983126,0.50239059,109380.0,109370.0,0.32650469]
[1751522983326,0.25429427,109380.0,109370.0,0.32650469]
[1751522983627,0.50239059,109380.0,109370.0,0.32650469]
[1751522986834,0.50239059,109380.0,109370.0,0.32647522]
[1751522987135,0.50239059,109380.0,109370.0,0.32650499]
[1751522987833,0.50239059,109380.0,109370.0,0.31265607]
[1751522988034,0.50239059,109380.0,109370.0,0.32650632]
[1751522988235,0.50239059,109380.0,109370.0,0.14370222]
[1751522989535,0.53299059,109380.0,109370.0,0.14370222]
[1751522989838,0.89379059,109380.0,109370.0,0.14370222]
[1751522991036,0.89379059,109380.0,109370.0,0.14375153]
[1751522992538,0.89379059,109380.0,109370.0,0.08075153]
[1751522992736,0.89379059,109380.0,109370.0,0.11706807]
[1751522992936,0.92559059,109380.0,109370.0,0.11706807]
[1751522994139,0.92559059,109380.0,109370.0,0.11708431]
[1751522994334,1.17368691,109380.0,109370.0,0.11708431]
[1751522994535,0.67749427,109380.0,109370.0,0.11708431]
[1751522994738,0.67749427,109380.0,109370.0,0.29988841]
[1751522995040,0.92559059,109380.0,109370.0,0.29988841]
[1751522995334,0.89379059,109380.0,109370.0,0.29988841]
[1751522998436,0.89379059,109380.0,109370.0,0.29988074]
[1751522998638,0.89379059,109380.0,109370.0,0.29985075]
[1751522998933,0.53299059,109380.0,109370.0,0.33055075]
[1751522999131,0.28489427,109380.0,109370.0,0.34126784]
[1751522999430,0.53299059,109380.0,109370.0,0.34126784]
[1751523000342,0.53299059,109380.0,109370.0,0.33055075]
[1751523002345,0.53299059,109380.0,109370.0,0.3305507]
[1751523003641,0.53299059,109380.0,109370.0,0.3285507]
[1751523004145,0.53299059,109380.0,109370.0,0.38277913]
[1751523004343,0.53299059,109380.0,109370.0,0.38256599]
[1751523004546,0.53499059,109380.0,109370.0,0.38256599]
[1751523004846,0.53499059,109380.0,109370.0,0.32833756]
[1751523005544,0.53699059,109380.0,109370.0,0.32633818]
[1751523005844,0.53722544,109380.0,109370.0,0.57466935]
[1751523006347,0.53522544,109380.0,109370.0,0.57466935]
[1751523006549,0.53822544,109380.0,109370.0,0.57466935]
[1751523007262,0.53822544,109380.0,109370.0,0.62889778]
[1751523007862,0.53822544,109380.0,109370.0,0.38056661]
[1751523010764,0.53822544,109380.0,109370.0,0.32633818]
[1751523011266,0.53822544,109380.0,109370.0,0.14353408]
[1751523011564,0.53822544,109380.0,109370.0,0.32633818]
[1751523011766,0.78655661,109380.0,109370.0,0.32633818]
[1751523013166,0.28989427,109380.0,109370.0,0.32633818]
[1751523013366,0.78655661,109380.0,109370.0,0.32633818]
[1751523013566,0.28989427,109380.0,109370.0,0.32633818]
[1751523013762,0.28989427,109380.0,109370.0,0.57181151]
[1751523013964,0.53822544,109380.0,109370.0,0.58252841]
[1751523014164,0.78655661,109380.0,109370.0,0.33419724]
[1751523015070,0.78555661,109380.0,109370.0,0.33419724]
[1751523015572,0.78355661,109380.0,109370.0,0.33419724]
[1751523015773,0.78355661,109380.0,109370.0,0.33437786]